bitfinex-derivatives/quotes_ETHF0:USTF0_20240924
["timestamp","ask_amount","ask_price","bid_price","bid_amount"]
[1727211091505,0.37698,2652.5,2652.4,5.5483]
[1727211092310,0.37698,2652.5,2652.4,4.1183]
[1727211092799,0.37697,2652.6,2652.4,4.1183]
[1727211093106,0.37697,2652.6,2652.4,4.49529]
[1727211093506,0.37698,2652.5,2652.4,4.1183]
[1727211093807,0.37697,2652.6,2652.4,4.49529]
[1727211094003,3.35585113,2652.8,2652.4,4.49529]
[1727211094302,0.37696,2652.7,2652.6,1.22]
[1727211097204,1.36145113,2652.7,2652.6,1.22]
[1727211100199,0.37696,2652.7,2652.6,1.22]
[1727211101200,1.85481154,2652.7,2652.6,1.22]
[1727211101402,1.36206008,2652.7,2652.6,1.22]
[1727211102208,0.37696,2652.7,2652.6,2.20878034]
[1727211103000,0.98545092,2652.7,2652.6,2.58574034]
[1727211103206,1.47785154,2652.8,2652.7,0.37695]
[1727211103207,0.98545092,2652.8,2652.7,0.37695]
[1727211103406,0.98545092,2652.8,2652.7,1.57623118]
[1727211103612,0.98545092,2652.8,2652.7,3.01463118]
[1727211104402,0.98545092,2652.9,2652.8,0.37694]
[1727211104617,0.98595256,2652.9,2652.8,6.67055512]
[1727211105012,1.36287256,2652.9,2652.8,6.67055512]
[1727211105310,1.85477154,2653.0,2652.8,6.67055945]
[1727211105510,1.85477154,2653.0,2652.8,5.47128301]
[1727211105717,1.85477154,2653.0,2652.8,5.09434301]
[1727211105911,1.85477154,2653.0,2652.8,5.47126301]
[1727211106415,1.36323187,2652.9,2652.8,5.47126301]
[1727211106622,0.9863337,2652.9,2652.8,5.68233111]
[1727211107102,0.9863337,2652.9,2652.8,7.16340459]
[1727211107307,1.3632537,2652.9,2652.8,7.16340459]
[1727211107507,1.3632537,2652.9,2652.8,5.68233111]
[1727211107908,0.9863337,2652.9,2652.8,5.68233111]
[1727211108111,0.9863337,2652.9,2652.8,7.16340459]
[1727211108308,0.9863337,2652.9,2652.8,10.93300459]
[1727211109309,0.9863337,2652.9,2652.8,9.45195691]
[1727211109613,0.9863337,2652.9,2652.8,10.93303039]
[1727211109813,0.9863337,2652.9,2652.8,9.45195691]
[1727211110016,0.9863337,2652.9,2652.8,10.93303039]
[1727211110312,1.47785154,2653.1,2652.9,0.37692]
[1727211110313,1.3632437,2653.0,2652.9,0.37692]
[1727211110512,0.37691,2653.0,2652.9,3.78430793]
[1727211110706,1.36350356,2653.0,2652.9,2.79615691]
[1727211111608,0.37691,2653.0,2652.9,2.58498091]
[1727211112120,0.37691,2653.0,2652.9,2.20806091]
[1727211112307,1.31919,2653.0,2652.9,2.2080137]
[1727211115416,1.31919,2653.0,2652.9,1.22]
[1727211115417,2.79704154,2653.0,2652.9,1.22]
[1727211115918,1.31919,2653.0,2652.9,2.2080137]
[1727211116220,2.79704154,2653.0,2652.9,1.22]
[1727211116419,1.31919,2653.0,2652.9,1.22]
[1727211117007,2.79787572,2653.0,2652.9,1.22]
[1727211117518,1.31919,2653.0,2652.9,1.22]
[1727211119118,2.79760717,2653.0,2652.9,1.22]
[1727211119419,1.85532717,2653.0,2652.9,1.59692]
[1727211119613,0.37691,2653.0,2652.9,4.4278]
[1727211119813,0.37691,2653.0,2652.9,4.80472]
[1727211120621,1.3624369,2653.0,2652.9,5.4158137]
[1727211120823,0.37691,2653.0,2652.9,4.80472]
[1727211121817,0.37691,2653.0,2652.9,4.4278]
[1727211122013,0.37691,2653.0,2652.9,4.80472]
[1727211123024,0.37691,2653.0,2652.9,1.59692]
[1727211123223,1.85531717,2653.1,2652.9,1.59692]
[1727211123416,0.37691,2653.0,2652.9,1.59692]
[1727211123617,0.37691,2653.0,2652.9,2.79479609]
[1727211124316,0.37691,2653.0,2652.9,3.78236215]
[1727211124824,0.37691,2653.0,2652.9,2.79478609]
[1727211125326,0.37691,2653.0,2652.9,3.78232097]
[1727211125623,0.37691,2653.0,2652.9,3.40541097]
[1727211125829,0.37691,2653.0,2652.9,2.2075323]
[1727211126216,1.3617481,2653.1,2652.9,2.5844523]
[1727211126723,0.37691,2653.0,2652.9,1.22]
[1727211126926,0.37691,2653.0,2652.9,2.20753631]
[1727211127117,1.3617481,2653.1,2652.9,2.58445631]
[1727211127317,1.3617481,2653.1,2653.0,0.98753631]
[1727211127825,1.3617481,2653.1,2653.0,2.35093631]
[1727211128224,1.3617481,2653.1,2653.0,1.3634]
[1727211128527,1.3617481,2653.1,2653.0,2.72784631]
[1727211128528,0.9848481,2653.1,2653.0,2.72784631]
[1727211129116,1.3617381,2653.1,2653.0,2.72784631]
[1727211129724,0.9848481,2653.1,2653.0,2.72784631]
[1727211129926,0.37689,2653.1,2653.0,3.92564645]
[1727211130128,1.3617381,2653.2,2653.0,2.72783631]
[1727211130323,1.3617381,2653.2,2653.1,2.20753631]
[1727211130529,1.3617381,2653.2,2653.1,1.22]
[1727211132830,0.9848481,2653.2,2653.1,1.22]
[1727211133131,0.37688,2653.2,2653.1,3.40515718]
[1727211133326,0.37688,2653.2,2653.1,2.41775551]
[1727211134731,1.3617081,2653.4,2653.2,0.37688]
[1727211135030,1.3617081,2653.4,2653.3,2.67]
[1727211135235,0.9848481,2653.4,2653.3,5.01987824]
[1727211135428,1.3616981,2653.4,2653.3,5.01987824]
[1727211136233,0.9848481,2653.4,2653.3,5.01987824]
[1727211136740,1.3616881,2653.5,2653.3,5.01987824]
[1727211137127,0.9848481,2653.5,2653.3,5.01987824]
[1727211137327,0.9848481,2653.5,2653.4,0.37685]
[1727211137929,0.9848481,2653.5,2653.4,1.36422824]
[1727211138126,0.9848481,2653.6,2653.4,8.34082824]
[1727211138330,1.3616681,2653.7,2653.5,2.20737824]
[1727211138626,1.47841717,2653.7,2653.6,0.37682]
[1727211138824,1.47841717,2653.7,2653.6,3.25872]
[1727211139033,1.3839,2654.0,2653.7,0.37681]
[1727211139034,1.47841717,2653.8,2653.7,0.37681]
[1727211139230,2.35108976,2654.0,2653.8,1.22]
[1727211139231,1.47841717,2653.9,2653.8,1.22]
[1727211139535,1.47841717,2654.0,2653.9,0.37678]
[1727211139926,1.47841717,2654.0,2653.9,4.14478]
[1727211140129,0.98505143,2654.0,2653.9,4.14478]
[1727211140533,0.98505143,2654.0,2653.8,1.59679]
[1727211140743,0.98509203,2653.9,2653.8,5.36479]
[1727211140940,0.98509203,2653.9,2653.8,1.59679]
[1727211141132,1.36186203,2654.0,2653.8,1.22]
[1727211141327,0.98509203,2654.0,2653.9,1.22]
[1727211141646,0.98509203,2654.0,2653.9,1.59678]
[1727211142244,0.98509203,2654.1,2653.9,1.59678]
[1727211142441,1.36184203,2654.1,2654.0,1.22]
[1727211142839,0.98509203,2654.1,2654.0,1.59677]
[1727211143138,0.37674,2654.2,2654.0,1.59677]
[1727211143139,0.98509203,2654.2,2654.1,0.37675]
[1727211143340,0.98509203,2654.2,2654.1,3.25635]
[1727211144041,0.37673,2654.3,2654.1,3.25635]
[1727211144042,1.36182203,2654.3,2654.1,3.25635]
[1727211144246,1.36182203,2654.3,2654.2,1.22]
[1727211144445,0.98509203,2654.3,2654.2,1.59674]
[1727211144648,0.98509203,2654.5,2654.2,1.22]
[1727211144845,1.36178203,2654.5,2654.4,1.22]
[1727211145147,0.37669,2654.5,2654.4,1.22]
[1727211146749,2.7721,2654.6,2654.4,1.22]
[1727211146950,3.14879,2654.6,2654.4,1.22]
[1727211147353,0.37669,2654.6,2654.5,1.3925]
[1727211147945,0.37671,2654.5,2654.3,1.22]
[1727211148444,0.37671,2654.4,2654.3,1.22]
[1727211149852,1.76161,2654.4,2654.3,1.22]
[1727211150454,3.14951,2654.4,2654.3,1.22]
[1727211153652,4.09129,2654.4,2654.3,1.22]
[1727211154259,4.09129,2654.4,2654.1,2.6608]
[1727211154260,0.37674,2654.2,2654.1,2.6608]
[1727211155355,1.31859,2654.2,2654.1,2.6608]
[1727211157263,1.31859,2654.2,2654.1,1.22]
[1727211157755,1.31859,2654.2,2654.0,4.5709]
[1727211157756,1.31864,2654.1,2654.0,4.5709]
[1727211157951,1.31864,2654.1,2654.0,1.3631]
[1727211159757,0.37675,2654.1,2654.0,1.3631]
[1727211162465,0.37674,2654.2,2654.0,1.73985]
[1727211162659,0.37674,2654.2,2654.1,1.22]
[1727211166465,0.94173,2654.6,2654.1,1.22]
[1727211166764,1.31854,2654.3,2654.2,1.22]
[1727211167570,1.31854,2654.3,2654.0,4.5709]
[1727211167571,0.37675,2654.1,2654.0,5.7909]
[1727211167955,1.31864,2654.1,2654.0,2.5831]
[1727211168162,2.67764,2654.1,2654.0,2.5831]
[1727211168365,4.04594,2654.1,2654.0,2.5831]
[1727211169964,4.04594,2654.1,2653.6,3.2078]
[1727211170161,0.37681,2653.7,2653.6,3.2078]
[1727211170465,0.37681,2653.7,2653.6,4.4278]
[1727211172968,1.31888,2653.6,2653.5,2.8672]
[1727211173264,3.24462,2653.6,2653.5,4.0872]
[1727211173462,4.18668,2653.6,2653.5,1.22]
[1727211183478,1.31894,2653.5,2653.4,0.98737824]
[1727211183688,1.31894,2653.5,2653.3,3.59337824]
[1727211183689,0.37685,2653.4,2653.3,3.59337824]
[1727211184979,0.37685,2653.4,2653.3,3.59225704]
[1727211186374,0.37685,2653.4,2653.3,2.37225704]
[1727211186573,1.31899,2653.4,2653.3,1.386]
[1727211187075,1.31899,2653.4,2653.2,4.004]
[1727211187076,0.94217,2653.3,2653.0,0.98625704]
[1727211187372,0.94217,2653.3,2653.2,1.22]
[1727211187373,1.31904,2653.3,2653.2,1.22]
[1727211187576,5.08784,2653.3,2653.2,1.22]
[1727211187767,1.31904,2653.3,2653.2,1.22]
[1727211188170,0.37687,2653.3,2653.2,1.22]
[1727211190079,7.06069203,2653.6,2653.2,1.22]
[1727211190284,3.58462,2653.6,2653.5,1.22]
[1727211190878,0.37684,2653.5,2653.4,1.22]
[1727211192183,0.37688,2653.2,2653.1,2.7836]
[1727211192380,0.37688,2653.2,2653.1,4.1598]
[1727211194572,0.37688,2653.2,2653.1,5.3798]
[1727211195273,1.4563,2653.4,2653.1,5.3798]
[1727211195274,0.37688,2653.3,2653.1,5.3798]
[1727211195469,1.4563,2653.4,2653.1,5.3798]
[1727211195677,0.37688,2653.2,2653.1,5.3798]
[1727211204594,0.37686,2653.4,2653.1,5.75669]
[1727211204796,0.98509203,2653.6,2653.3,1.22]
[1727211205092,0.37685,2653.5,2653.4,1.4016]
[1727211205294,0.37683,2653.6,2653.4,1.4016]
[1727211205483,0.37683,2653.6,2653.5,2.5573]
[1727211211180,1.36192203,2653.6,2653.5,2.5573]
[1727211215193,0.37683,2653.6,2653.5,3.54355704]
[1727211215497,1.35957208,2653.6,2653.5,3.54355704]
[1727211215896,1.35966655,2653.6,2653.5,4.76595704]
[1727211216099,0.37683,2653.6,2653.5,4.76595704]
[1727211216298,0.37683,2653.6,2653.5,3.54595704]
[1727211216498,2.79730717,2653.6,2653.5,2.5597]
[1727211217000,1.31894,2653.5,2653.4,2.38785704]
[1727211217190,2.62244,2653.5,2653.4,2.38785704]
[1727211217394,6.39124,2653.5,2653.4,2.38785704]
[1727211218092,7.86965717,2653.5,2653.4,2.60034764]
[1727211218993,1.47841717,2653.6,2653.4,3.82034764]
[1727211219190,1.85525717,2653.5,2653.4,3.8744]
[1727211219487,1.85525717,2653.5,2653.4,5.07318871]
[1727211221196,1.85525717,2653.5,2653.4,6.55541526]
[1727211221401,0.37684,2653.5,2653.4,6.55541526]
[1727211221701,1.85525717,2653.5,2653.4,6.55541526]
[1727211221901,0.37684,2653.5,2653.4,6.55541526]
[1727211222102,1.85525717,2653.5,2653.4,6.55541526]
[1727211222589,0.37684,2653.5,2653.4,6.55541526]
[1727211223198,1.85525717,2653.5,2653.4,6.55541526]
[1727211224403,1.85525717,2653.5,2653.4,6.55552706]
[1727211226808,1.85525717,2653.5,2653.4,5.35662655]
[1727211227012,1.85525717,2653.5,2653.4,6.55483788]
[1727211227900,6.56615717,2653.5,2653.4,2.68043788]
[1727211228107,9.11605717,2653.5,2653.4,1.19821133]
[1727211228512,5.34725717,2653.5,2653.4,1.19821133]
[1727211228812,2.79735717,2653.5,2653.4,1.19821133]
[1727211229005,1.31894,2653.5,2653.4,1.19821133]
[1727211229312,0.37685,2653.4,2653.3,1.48222655]
[1727211229613,0.37685,2653.4,2653.3,2.68061521]
[1727211229614,1.8548758,2653.4,2653.3,2.68061521]
[1727211230306,2.7970158,2653.4,2653.3,2.68061521]
[1727211230707,4.0219158,2653.4,2653.3,2.68061521]
[1727211230907,4.76993,2653.4,2653.3,1.19838866]
[1727211231108,4.76993,2653.4,2653.2,2.82022655]
[1727211231109,16.13619976,2653.4,2653.2,2.47107252]
[1727211231308,6.30784,2653.3,2653.2,0.98884597]
[1727211231503,0.94221,2653.2,2653.0,2.81492655]
[1727211231710,1.31909,2653.2,2653.1,1.19850992]
[1727211231910,4.52689,2653.2,2653.1,1.19850992]
[1727211232110,8.29569,2653.2,2653.1,1.19850992]
[1727211232413,9.77362923,2653.2,2653.1,1.19850992]
[1727211232909,6.56582923,2653.2,2653.1,2.18730681]
[1727211233113,8.29569,2653.2,2653.1,0.98879689]
[1727211233409,9.77368219,2653.2,2653.1,0.98879689]
[1727211233814,9.77368219,2653.2,2653.1,2.18707857]
[1727211234113,9.77368219,2653.2,2653.1,2.18707403]
[1727211234319,9.77368219,2653.2,2653.1,1.19827714]
[1727211234715,6.00488219,2653.2,2653.1,2.41827714]
[1727211235013,6.00488219,2653.2,2653.1,2.49057714]
[1727211237706,2.79708219,2653.2,2653.1,2.49057714]
[1727211238415,2.79708219,2653.2,2653.1,3.47900185]
[1727211240413,2.79708219,2653.2,2653.1,2.28072471]
[1727211240614,1.85487219,2653.2,2653.1,3.47862078]
[1727211241910,1.85487219,2653.2,2653.1,3.47856056]
[1727211242207,0.9867324,2653.2,2653.1,5.1923624]
[1727211242410,0.9867324,2653.2,2653.1,8.9611624]
[1727211243321,0.9867324,2653.2,2653.1,5.1923624]
[1727211243516,0.9867324,2653.2,2653.1,5.5692524]
[1727211244317,0.9867324,2653.2,2653.1,9.3380524]
[1727211246319,0.9867324,2653.2,2653.1,7.85582585]
[1727211246622,0.9867324,2653.2,2653.1,7.6408206]
[1727211246821,0.9867324,2653.2,2653.1,3.8720206]
[1727211247221,0.9867324,2653.2,2653.1,7.6408206]
[1727211248124,0.9867324,2653.2,2653.1,3.8720206]
[1727211248526,0.9867324,2653.2,2653.1,7.6408206]
[1727211248918,0.9867324,2653.2,2653.1,3.8720206]
[1727211249120,0.9867324,2653.2,2653.1,3.4951306]
[1727211249324,0.9867324,2653.2,2653.1,3.8720206]
[1727211249523,1.3636124,2653.2,2653.1,3.4951306]
[1727211249724,0.9867324,2653.2,2653.1,3.8720206]
[1727211251024,0.9867324,2653.2,2653.1,3.4951306]
[1727211251225,1.31909,2653.2,2653.1,0.9828306]
[1727211251434,0.37689,2653.1,2653.0,2.3155306]
[1727211251626,1.36512232,2653.1,2653.0,2.52242286]
[1727211252023,1.36512232,2653.1,2653.0,3.50453793]
[1727211253028,1.36512232,2653.1,2653.0,2.52242286]
[1727211253725,1.36512232,2653.1,2653.0,3.50458875]
[1727211254732,1.36512232,2653.1,2653.0,2.31486589]
[1727211255235,7.29696232,2653.1,2653.0,0.98216589]
[1727211255421,7.29696232,2653.1,2652.8,2.31656589]
[1727211255422,0.94228,2653.0,2652.8,2.31656589]
[1727211255622,0.37694,2652.8,2652.7,0.98216589]
[1727211255821,0.94231,2652.9,2652.4,1.2365]
[1727211255822,0.37698,2652.5,2652.4,1.2458]
[1727211256126,0.94249,2652.4,2652.1,2.26806589]
[1727211256321,0.37702,2652.2,2652.1,2.26806589]
[1727211256721,10.9904,2652.2,2651.8,0.98216589]
[1727211256923,0.98796376,2651.9,2651.7,2.20216589]
[1727211257124,0.98796376,2652.0,2651.8,1.22]
[1727211257327,0.98796376,2652.0,2651.9,1.2561]
[1727211257532,1.36500376,2652.1,2651.9,1.2561]
[1727211257928,0.98796376,2652.1,2651.9,1.2561]
[1727211258127,2.05496376,2652.3,2652.0,1.22]
[1727211258329,1.067,2652.3,2652.2,1.22]
[1727211258732,1.067,2652.3,2652.1,1.22]
[1727211260440,1.067,2652.3,2652.0,5.2907]
[1727211262228,0.98796376,2652.6,2652.2,2.65]
[1727211262435,1.44097,2652.6,2652.3,2.65]
[1727211262639,1.44097,2652.6,2652.4,3.6841]
[1727211263039,0.37698,2652.5,2652.4,3.6841]
[1727211263244,1.44097,2652.6,2652.4,3.6841]
[1727211263931,3.58476,2652.7,2652.4,3.6841]
[1727211264241,3.2078,2652.7,2652.5,2.65]
[1727211265842,0.37695,2652.8,2652.5,2.65]
[1727211266537,5.83866376,2653.0,2652.5,3.02697]
[1727211266538,0.37693,2652.9,2652.5,3.02697]
[1727211266731,0.37691,2653.0,2652.7,2.65]
[1727211266931,1.064,2653.1,2652.8,1.71014]
[1727211267134,1.064,2653.1,2652.8,3.01983]
[1727211267333,1.064,2653.1,2652.9,1.3232]
[1727211267527,1.064,2653.1,2652.9,1.70012]
[1727211267730,1.064,2653.1,2652.9,1.3232]
[1727211268239,1.4409,2653.1,2652.9,1.3232]
[1727211268835,1.4409,2653.1,2652.9,4.531]
[1727211270743,1.4409,2653.1,2652.9,1.3232]
[1727211273153,0.37691,2653.0,2652.9,1.3232]
[1727211273349,0.37692,2652.9,2652.8,4.541]
[1727211277341,0.37692,2653.0,2652.8,4.541]
[1727211277546,0.3769,2653.1,2652.8,4.541]
[1727211277741,2.05196376,2653.3,2652.9,0.37691]
[1727211277949,2.05196376,2653.3,2653.0,2.6541]
[1727211278140,2.42883376,2653.3,2653.0,2.6541]
[1727211278346,2.42884376,2653.3,2653.0,2.6541]
[1727211278547,0.37688,2653.2,2653.0,2.6541]
[1727211281255,1.36484376,2653.2,2653.0,2.6541]
[1727211284850,0.98796376,2653.1,2653.0,2.6541]
[1727211285049,1.36484376,2653.2,2653.0,2.6541]
[1727211285956,0.37689,2653.1,2653.0,2.6541]
[1727211286358,1.36485376,2653.1,2653.0,2.6541]
[1727211286658,0.37689,2653.1,2653.0,2.6541]
[1727211286858,1.36485376,2653.1,2653.0,2.6541]
[1727211287860,0.37689,2653.1,2653.0,2.6541]
[1727211288052,1.36485376,2653.1,2653.0,2.6541]
[1727211288457,0.37689,2653.1,2653.0,2.6541]
[1727211289947,0.37692,2652.9,2652.8,1.3332]
[1727211290167,0.37692,2652.9,2652.8,2.6142]
[1727211294460,0.37692,2652.9,2652.8,1.3332]
[1727211300366,0.98796376,2653.0,2652.8,2.93013]
[1727211300553,0.98796376,2653.0,2652.8,2.5532]
[1727211301065,0.98796376,2653.0,2652.8,2.93014]
[1727211301263,1.36487376,2653.0,2652.8,2.5532]
[1727211301463,0.98796376,2653.0,2652.8,1.3332]
[1727211301666,1.36488376,2653.0,2652.8,1.3332]
[1727211301862,0.98796376,2653.0,2652.8,1.3332]
[1727211302069,1.36487376,2653.0,2652.8,1.3332]
[1727211303262,1.36488376,2652.9,2652.8,1.3332]
[1727211303563,0.37692,2652.9,2652.8,1.3332]
[1727211303957,1.36488376,2653.0,2652.8,1.71013]
[1727211304358,0.98796376,2653.0,2652.9,1.22]
[1727211304559,0.98796376,2653.0,2652.9,0.37692]
[1727211306063,1.36487376,2653.0,2652.8,1.71013]
[1727211306260,0.98796376,2653.0,2652.8,1.71013]
[1727211306460,1.36487376,2653.0,2652.8,1.71013]
[1727211306663,1.36487376,2653.0,2652.8,2.69229589]
[1727211306862,0.98796376,2652.9,2652.8,1.71013]
[1727211307065,0.37694,2652.8,2652.7,0.98216589]
[1727211307270,1.36490376,2652.8,2652.7,2.24446589]
[1727211308371,2.7018465,2652.9,2652.7,2.24446589]
[1727211308572,1.8587865,2652.8,2652.7,3.45946589]
[1727211310771,1.8587865,2652.8,2652.7,4.64987964]
[1727211310972,1.8587865,2652.8,2652.7,3.45946589]
[1727211311155,1.8587865,2652.8,2652.7,4.65002382]
[1727211311359,1.8587865,2652.8,2652.7,3.45946589]
[1727211311570,1.8587865,2652.8,2652.7,4.64999628]
[1727211311965,1.8587865,2652.8,2652.7,3.45946589]
[1727211312168,0.37694,2652.8,2652.7,4.65242083]
[1727211312984,1.59694,2652.8,2652.7,4.65298739]
[1727211313171,1.59694,2652.8,2652.7,3.46236152]
[1727211313560,5.36654,2652.8,2652.7,2.24736152]
[1727211314073,6.30889,2652.8,2652.7,0.98506152]
[1727211314560,0.37695,2652.7,2652.6,0.98506152]
[1727211314767,1.59695,2652.7,2652.6,0.98506152]
[1727211315074,1.59695,2652.7,2652.6,2.17668914]
[1727211315075,6.84982361,2652.7,2652.6,2.17668914]
[1727211315266,5.36655,2652.7,2652.6,0.98506152]
[1727211315572,6.84973601,2652.7,2652.6,0.98506152]
[1727211316376,7.79211601,2652.7,2652.6,0.98506152]
[1727211316876,1.31948,2652.4,2652.3,0.98506152]
[1727211317067,0.37702,2652.2,2652.1,0.98506152]
[1727211317268,1.8596533,2652.2,2652.0,0.98506152]
[1727211317575,0.98835008,2652.2,2652.1,2.41292399]
[1727211317775,0.98835008,2652.2,2652.1,3.89515054]
[1727211318078,0.98835008,2652.3,2652.1,3.89515054]
[1727211318268,0.98835008,2652.3,2652.2,0.98639045]
[1727211318579,1.4826333,2652.4,2652.2,0.98639045]
[1727211318768,0.98809765,2652.3,2652.2,0.98639045]
[1727211319369,0.98794343,2652.3,2652.1,1.36341045]
[1727211319766,0.98794343,2652.3,2652.2,0.98639045]
[1727211320483,0.98794343,2652.3,2652.1,1.36341045]
[1727211320774,1.36495343,2652.3,2652.1,1.36341045]
[1727211323477,0.37701,2652.3,2652.1,1.36341045]
[1727211325979,0.37702,2652.2,2652.1,0.98639045]
[1727211326380,0.37702,2652.2,2652.0,0.98639045]
[1727211326678,1.22,2652.3,2652.1,0.98639045]
[1727211326875,0.37702,2652.2,2652.1,0.98639045]
[1727211327580,0.37702,2652.2,2652.0,1.36343045]
[1727211328776,0.37702,2652.2,2652.1,0.37704]
[1727211329183,1.59702,2652.3,2652.1,0.37704]
[1727211329482,0.37702,2652.2,2652.0,1.36343045]
[1727211329677,0.37702,2652.2,2652.1,0.98639045]
[1727211330580,0.37702,2652.2,2652.1,0.37704]
[1727211331484,0.37702,2652.2,2652.0,1.36343045]
[1727211332077,0.37702,2652.2,2652.1,0.37704]
[1727211335683,0.37702,2652.2,2652.1,1.70924]
[1727211335990,0.37702,2652.2,2652.1,2.98184]
[1727211337588,0.37702,2652.2,2652.1,4.23454]
[1727211338281,0.98794343,2652.4,2652.1,5.0775]
[1727211338479,1.36493343,2652.5,2652.3,0.37701]
[1727211338683,1.36493343,2652.5,2652.4,1.2527]
[1727211339074,0.37702,2652.2,2652.1,3.59119045]
[1727211339287,0.37702,2652.2,2652.1,2.6048]
[1727211340485,1.59702,2652.3,2652.1,3.825]
[1727211340687,1.59702,2652.3,2652.1,4.20203]
[1727211343092,1.59702,2652.3,2652.1,5.18842045]
[1727211343888,0.37702,2652.2,2652.1,5.18842045]
[1727211345491,3.46734343,2652.4,2652.1,4.81139045]
[1727211345686,3.46734343,2652.4,2652.3,0.37701]
[1727211345687,0.98794343,2652.4,2652.3,0.37701]
[1727211345881,1.36493343,2652.5,2652.3,0.37701]
[1727211346385,0.37699,2652.5,2652.4,1.3194]
[1727211346787,1.59699,2652.5,2652.4,1.3194]
[1727211346988,2.58426206,2652.5,2652.4,1.3194]
[1727211347388,1.59699,2652.5,2652.4,1.3194]
[1727211347585,2.58432958,2652.5,2652.4,1.3194]
[1727211347984,1.59699,2652.5,2652.4,1.3194]
[1727211348394,2.58435068,2652.5,2652.4,1.3194]
[1727211348589,1.59699,2652.5,2652.4,1.3194]
[1727211350000,2.5845124,2652.5,2652.4,1.3194]
[1727211350201,3.0796233,2652.5,2652.4,1.3194]
[1727211350401,0.37701,2652.3,2652.2,3.2078]
[1727211350601,2.58471752,2652.3,2652.2,4.4498]
[1727211350899,2.58471752,2652.3,2652.2,3.2078]
[1727211351697,1.59702,2652.3,2652.1,3.96823045]
[1727211351894,1.36491176,2652.2,2652.1,3.59119045]
[1727211354294,5.08998,2652.2,2652.1,0.98639045]
[1727211354492,0.37705,2652.0,2651.9,2.22839045]
[1727211354800,1.36543714,2652.0,2651.9,2.22839045]
[1727211355102,0.37706,2651.9,2651.8,0.98639045]
[1727211355303,2.58549463,2651.9,2651.8,0.98639045]
[1727211356397,1.31978,2651.8,2651.7,3.49037029]
[1727211356598,1.31978,2651.8,2651.7,0.98537029]
[1727211356599,3.58080098,2651.8,2651.7,0.98537029]
[1727211356896,0.37711,2651.6,2651.5,0.98537029]
[1727211357099,2.58559348,2651.6,2651.5,0.98537029]
[1727211357296,0.37712,2651.5,2651.4,3.44027029]
[1727211358202,0.37712,2651.5,2651.4,3.64936949]
[1727211358400,0.37712,2651.5,2651.4,3.44018952]
[1727211359499,0.98848348,2651.6,2651.4,3.81731952]
[1727211359802,1.36558348,2651.7,2651.5,0.98528952]
[1727211360399,2.58558348,2651.7,2651.5,0.98528952]
[1727211361407,0.37711,2651.6,2651.4,3.44018952]
[1727211361703,1.22,2651.5,2651.4,3.44018952]
[1727211362405,1.22,2651.5,2651.4,3.81732952]
[1727211362600,1.22,2651.5,2651.4,3.44018952]
[1727211362795,1.22,2651.5,2651.4,3.81732952]
[1727211364603,1.22,2651.5,2651.4,3.44018952]
[1727211365403,1.22,2651.5,2651.4,3.81732952]
[1727211365810,1.22,2651.5,2651.4,2.4549]
[1727211366506,1.59712,2651.5,2651.4,2.4549]
[1727211369016,0.37711,2651.6,2651.4,2.83203]
[1727211369513,1.59711,2651.6,2651.4,2.83203]
[1727211371107,1.22,2651.6,2651.4,2.4549]
[1727211371299,1.59712,2651.5,2651.4,2.4549]
[1727211371811,1.22,2651.5,2651.4,2.83204]
[1727211374415,1.59712,2651.5,2651.4,2.4549]
[1727211375311,1.22,2651.5,2651.4,2.4549]
[1727211375508,2.20848348,2651.8,2651.4,2.4549]
[1727211375718,0.3771,2651.7,2651.5,0.37711]
[1727211376611,1.22,2651.6,2651.5,0.37711]
[1727211377218,1.59711,2651.6,2651.5,0.37711]
[1727211378216,1.22,2651.6,2651.5,0.37711]
[1727211379212,0.37712,2651.5,2651.4,2.4549]
[1727211379415,1.59712,2651.5,2651.4,2.4549]
[1727211379613,2.53993,2651.5,2651.4,2.4549]
[1727211379818,2.53993,2651.5,2651.4,1.2156]
[1727211380705,1.59712,2651.5,2651.4,1.2156]
[1727211382125,1.59712,2651.5,2651.4,2.5125]
[1727211385422,1.052,2651.7,2651.5,0.37711]
[1727211385620,1.4291,2651.7,2651.4,2.88962]
[1727211385921,1.22,2651.5,2651.4,2.88963]
[1727211386125,1.22,2651.5,2651.4,2.5125]
[1727211386617,1.59712,2651.5,2651.4,2.5125]
[1727211386818,1.22,2651.5,2651.4,2.5125]
[1727211389819,1.22,2651.5,2651.4,2.88964]
[1727211390021,1.22,2651.5,2651.4,2.5125]
[1727211391024,1.22,2651.5,2651.4,2.88964]
[1727211391430,1.22,2651.5,2651.4,2.5125]
[1727211391431,1.59712,2651.5,2651.4,2.5125]
[1727211392715,1.59712,2651.5,2651.4,3.49778952]
[1727211392916,1.59712,2651.5,2651.4,2.5125]
[1727211393119,1.59712,2651.5,2651.4,3.49778952]
[1727211393331,1.59712,2651.5,2651.4,2.5125]
[1727211393532,1.59712,2651.5,2651.4,3.49778952]
[1727211396734,1.59712,2651.5,2651.4,3.70774265]
[1727211397034,1.59712,2651.5,2651.4,4.69483744]
[1727211397426,2.58560348,2651.5,2651.4,3.70784114]
[1727211397831,2.58560348,2651.5,2651.4,5.19006769]
[1727211398132,2.58560348,2651.5,2651.4,3.70784114]
[1727211398322,2.58560348,2651.5,2651.4,5.19006769]
[1727211400431,3.07970072,2651.5,2651.4,4.16029029]
[1727211401225,2.58673034,2651.5,2651.4,6.12870963]
[1727211401536,3.07970072,2651.5,2651.4,6.12883815]
[1727211401834,1.59712,2651.5,2651.4,6.13085401]
[1727211402135,3.07970072,2651.5,2651.4,6.13085401]
[1727211402330,2.70258072,2651.5,2651.4,8.90317512]
[1727211403430,3.07970072,2651.5,2651.4,8.52603512]
[1727211404423,3.07970072,2651.5,2651.4,8.52597299]
[1727211404831,3.07970072,2651.5,2651.4,6.13079188]
[1727211406537,3.07970072,2651.5,2651.4,6.1308335]
[1727211407332,3.07970072,2651.5,2651.4,4.93343488]
[1727211407637,3.07970072,2651.5,2651.4,5.67847554]
[1727211407826,3.07970072,2651.5,2651.4,6.13120508]
[1727211408033,3.07970072,2651.5,2651.4,8.5270434]
[1727211408332,3.07970072,2651.5,2651.4,6.13120508]